bitfinex-derivatives/quotes_ETHF0:USTF0_20250224
["timestamp","ask_amount","ask_price","bid_price","bid_amount"]
[1740434099482,0.7556,2647.7,2647.6,0.75559]
[1740434099682,0.75561,2647.6,2647.5,0.00567065]
[1740434100489,0.75581,2646.9,2646.8,3.097]
[1740434101191,3.2078,2647.4,2646.8,3.097]
[1740434101390,1.1427,2647.5,2646.9,1.88953]
[1740434101585,0.75567,2647.4,2647.3,0.75567]
[1740434102690,0.75575,2647.1,2647.0,3.2078]
[1740434102893,1.88917,2647.4,2646.8,3.10267065]
[1740434103193,1.1427,2647.5,2646.8,4.99223065]
[1740434103595,0.5369,2647.4,2646.9,1.88951]
[1740434103891,5.47529,2648.1,2647.3,3.2078]
[1740434104091,0.75563,2647.6,2647.5,0.75562]
[1740434104285,0.7601138,2647.4,2647.3,7.06049]
[1740434104596,0.0044538,2647.4,2647.3,7.06049]
[1740434104985,0.7601138,2647.4,2647.3,7.06049]
[1740434105188,0.7601138,2647.4,2647.3,3.097]
[1740434105491,0.75569,2647.3,2647.2,0.75572]
[1740434105793,0.75572,2647.2,2647.1,3.96354]
[1740434106089,0.0044538,2647.4,2647.3,0.75569]
[1740434106488,0.7557,2647.3,2647.2,0.7557]
[1740434106686,0.0044538,2647.4,2647.1,3.2078]
[1740434106990,0.0044538,2647.4,2647.3,0.75569]
[1740434107287,0.0044538,2647.4,2647.2,32.6]
[1740434108495,0.0044538,2647.4,2647.1,3.2078]
[1740434110691,3.8e-06,2647.4,2647.2,0.1848]
[1740434110892,0.5369,2647.9,2647.2,0.1848]
[1740434111092,0.5369,2647.9,2647.7,3.2078]
[1740434111294,0.5369,2647.9,2647.7,6.3038]
[1740434111898,0.5881,2647.8,2647.7,6.3038]
[1740434112404,0.5881,2647.8,2647.7,3.2078]
[1740434113996,0.5369,2647.9,2647.7,3.2078]
[1740434116400,0.00369808,2648.0,2647.8,3.095]
[1740434120103,0.00369808,2648.0,2647.7,3.2078]
[1740434120604,0.00369808,2648.0,2647.8,0.5622]
[1740434121193,0.00369808,2648.0,2647.9,32.6]
[1740434121600,2.957,2649.2,2647.9,38.6]
[1740434121797,1.6855,2649.3,2648.8,3.2078]
[1740434121999,1.6855,2649.3,2648.8,3.095]
[1740434122203,5.09569,2649.2,2648.8,3.095]
[1740434122393,0.75527,2648.8,2648.2,0.75543]
[1740434122598,0.75535,2648.5,2648.4,3.85037]
[1740434123305,0.75535,2648.5,2648.4,3.095]
[1740434124596,0.75535,2648.5,2648.2,0.00567065]
[1740434124800,0.75541,2648.3,2648.2,0.00567065]
[1740434126907,3.96321,2648.3,2648.2,0.00567065]
[1740434127507,0.75541,2648.3,2648.2,0.00567065]
[1740434127900,3.2078,2648.6,2648.2,0.00567065]
[1740434128100,0.75541,2648.3,2648.2,0.76109065]
[1740434128506,3.2078,2648.6,2648.2,0.76109065]
[1740434128805,0.75541,2648.3,2648.2,0.76109065]
[1740434128994,1.6855,2648.7,2648.2,3.09967065]
[1740434129199,0.75541,2648.3,2648.2,3.85510065]
[1740434129695,1.6855,2648.7,2648.6,0.75532]
[1740434129895,1.6855,2648.7,2648.3,1.1168]
[1740434130202,0.75536,2648.5,2648.4,0.75536]
[1740434130604,1.6855,2648.7,2648.5,0.75534]
[1740434130605,0.75534,2648.6,2648.5,0.75534]
[1740434131108,0.75535,2648.5,2648.4,33.35536]
[1740434131509,0.75534,2648.6,2648.5,0.75534]
[1740434132208,0.75534,2648.6,2648.5,0.75535]
[1740434132408,1.6855,2648.7,2648.4,32.6]
[1740434132704,1.6855,2648.7,2648.6,0.75532]
[1740434132900,0.7552,2649.1,2649.0,0.75519]
[1740434133101,1.7003,2649.2,2648.6,3.094]
[1740434133508,0.75529,2648.7,2648.6,3.094]
[1740434133705,0.75529,2648.8,2648.7,0.75529]
[1740434134005,0.75529,2648.7,2648.6,3.094]
[1740434134408,0.75532,2648.6,2648.5,6.3018]
[1740434135401,0.75532,2648.6,2648.5,7.05714]
[1740434135601,0.75532,2648.6,2648.5,6.3018]
[1740434135810,0.75532,2648.7,2648.6,0.75531]
[1740434136015,0.75532,2648.6,2648.5,6.3018]
[1740434136507,0.75532,2648.6,2648.5,7.05715]
[1740434136708,0.75532,2648.6,2648.5,3.094]
[1740434137102,1.7003,2649.2,2648.5,3.094]
[1740434137305,0.75531,2648.7,2648.6,0.75531]
[1740434137505,1.7003,2649.2,2648.5,3.094]
[1740434137705,1.31802,2648.6,2648.5,3.094]
[1740434138906,1.31802,2648.6,2648.5,3.84935]
[1740434139305,3.2078,2649.0,2648.5,3.094]
[1740434139511,0.75531,2648.7,2648.6,0.7553]
[1740434139710,0.7553,2648.7,2648.6,0.75531]
[1740434140312,0.75529,2648.7,2648.6,0.75531]
[1740434140511,0.75526,2648.9,2648.5,3.094]
[1740434140711,0.75527,2648.8,2648.7,0.75528]
[1740434140908,3.2078,2649.0,2648.5,3.094]
[1740434141110,0.75525,2648.9,2648.8,0.75526]
[1740434141308,0.75525,2648.9,2648.5,3.6828]
[1740434141309,3.96304,2649.0,2648.9,0.75524]
[1740434141710,3.2078,2649.0,2648.9,0.75524]
[1740434141910,3.2078,2649.0,2648.8,0.75525]
[1740434142110,3.2078,2649.0,2648.6,0.5352]
[1740434142304,3.96302,2649.0,2648.6,0.5352]
[1740434142517,0.5497,2649.1,2649.0,0.75521]
[1740434142816,1.3049,2649.1,2649.0,0.75521]
[1740434143009,0.5497,2649.1,2648.9,3.2078]
[1740434143408,0.5497,2649.1,2649.0,0.75521]
[1740434144712,1.30489,2649.1,2648.9,7.05602]
[1740434145013,1.30489,2649.1,2649.0,0.75521]
[1740434145215,1.30489,2649.1,2648.9,6.3008]
[1740434145216,0.5497,2649.1,2648.9,7.05603]
[1740434145419,1.30489,2649.1,2649.0,0.75521]
[1740434145619,0.5497,2649.1,2648.9,6.3008]
[1740434145914,1.30489,2649.1,2649.0,0.75521]
[1740434148124,0.5497,2649.1,2648.9,6.3008]
[1740434148317,0.5497,2649.1,2648.6,3.2078]
[1740434148618,0.5497,2649.1,2648.7,3.093]
[1740434150327,0.5497,2649.1,2648.6,3.2078]
[1740434150624,0.5497,2649.1,2648.6,6.3008]
[1740434151718,0.5497,2649.1,2648.3,33.1909]
[1740434151719,3.2078,2648.9,2648.3,33.1909]
[1740434151916,0.5497,2649.1,2648.4,3.093]
[1740434152118,0.5497,2649.1,2648.5,6.3008]
[1740434152528,0.5497,2649.1,2648.8,3.2078]
[1740434152730,0.5497,2649.1,2648.9,3.093]
[1740434155335,0.5497,2649.1,2648.8,3.2078]
[1740434157032,0.5497,2649.1,2648.5,6.2998]
[1740434163542,0.5497,2649.1,2648.6,3.092]
[1740434163932,0.00567065,2649.3,2648.8,3.2078]
[1740434164134,0.00567065,2649.3,2649.1,3.2078]
[1740434164443,0.00567065,2649.3,2649.1,6.2998]
[1740434164633,0.00567065,2649.3,2649.2,0.5813]
[1740434164829,0.00567065,2649.3,2649.2,33.1813]
[1740434166641,0.00567065,2649.3,2648.7,3.2078]
[1740434166847,0.00567065,2649.3,2648.8,3.092]
[1740434167040,0.93717065,2649.3,2648.8,3.092]
[1740434167341,1.1281,2649.2,2648.8,3.092]
[1740434167536,0.5878,2649.2,2648.8,3.6519]
[1740434168131,0.5403,2649.1,2648.8,3.092]
[1740434168843,0.5403,2649.1,2648.7,3.2078]
[1740434169039,3.7481,2649.1,2648.7,3.2078]
[1740434169244,0.5403,2649.1,2648.7,3.2078]
[1740434169941,0.3788,2648.9,2648.4,32.6]
[1740434170144,1.88831,2648.6,2648.2,0.00567065]
[1740434170338,0.75541,2648.3,2648.2,0.00567065]
[1740434170537,0.75541,2648.3,2648.2,33.36109065]
[1740434170737,0.75541,2648.3,2648.2,0.00567065]
[1740434171144,0.75541,2648.3,2648.2,0.76111065]
[1740434171543,0.75541,2648.3,2648.2,0.00567065]
[1740434171740,1.1531,2648.5,2648.2,0.76109065]
[1740434171943,0.75541,2648.3,2648.2,0.00567065]
[1740434172747,0.75541,2648.3,2648.2,0.76111065]
[1740434173242,1.1531,2648.5,2648.2,0.00567065]
[1740434173546,1.1531,2648.5,2648.4,0.75538]
[1740434173747,1.33818,2648.8,2648.7,0.75529]
[1740434173943,0.7553,2648.7,2648.6,0.75531]
[1740434174540,0.75529,2648.7,2648.6,33.35531]
[1740434174741,0.75535,2648.5,2648.4,3.2078]
[1740434174947,0.75538,2648.4,2648.3,0.75541]
[1740434175140,0.5834,2648.6,2648.2,0.00567065]
[1740434175342,0.5834,2648.6,2648.3,32.6]
[1740434175541,0.5829,2648.8,2648.3,32.6]
[1740434175848,0.5829,2648.8,2648.4,3.2078]
[1740434178149,3.7912,2649.0,2648.4,3.2078]
[1740434178347,4.3638,2649.0,2648.4,3.2078]
[1740434179250,7.3208,2649.0,2648.4,3.2078]
[1740434179448,3.2078,2648.6,2648.3,32.6]
[1740434179751,1.6994,2648.5,2648.2,0.00567065]
[1740434180441,3.2078,2648.3,2648.2,0.00567065]
[1740434180646,3.2078,2648.3,2647.4,3.2078]
[1740434180647,6.6786,2648.3,2647.4,3.2078]
[1740434180849,3.2078,2648.0,2647.4,3.2078]
[1740434181046,3.4708,2648.3,2647.5,32.6]
[1740434181047,1.6884,2647.9,2647.5,32.6]
[1740434181250,1.6884,2647.9,2647.7,0.75557]
[1740434181450,0.75559,2647.7,2647.5,33.35562]
[1740434181753,0.75561,2647.6,2647.5,32.60567065]
[1740434181947,0.75561,2647.6,2647.5,33.36131065]
[1740434182147,0.7556,2647.7,2647.5,33.36131065]
[1740434182451,0.75561,2647.6,2647.5,33.36131065]
[1740434182649,0.75561,2647.6,2647.5,0.76131065]
[1740434182953,1.6884,2647.9,2647.5,0.00567065]
[1740434183454,1.6884,2647.9,2647.5,0.76130065]
[1740434183652,1.6884,2647.9,2647.5,0.00567065]
[1740434183955,0.76114065,2648.1,2647.7,3.2078]
[1740434184147,0.76114065,2648.1,2647.9,0.7555]
[1740434184348,0.76114065,2648.1,2648.0,0.75549]
[1740434184746,0.00567065,2648.1,2647.5,3.09767065]
[1740434184945,0.75561,2647.6,2647.5,0.00567065]
[1740434187354,0.75561,2647.6,2647.5,0.76131065]
[1740434188259,1.1435,2647.7,2647.5,0.00567065]
[1740434190865,4.3513,2647.7,2647.5,0.00567065]
[1740434191257,7.4433,2647.7,2647.5,6.5e-07]
[1740434191550,13.4433,2647.7,2647.5,6.5e-07]
[1740434191759,7.4433,2647.7,2647.5,6.5e-07]
[1740434192955,13.8221,2647.7,2647.5,6.5e-07]
[1740434193367,0.06293855,2647.6,2647.5,6.5e-07]
[1740434193561,7.8221,2647.7,2647.5,6.5e-07]
[1740434193863,13.8221,2647.7,2647.5,6.5e-07]
[1740434194161,0.06294001,2647.6,2647.5,6.5e-07]
[1740434194557,6.44174001,2647.6,2647.5,6.5e-07]
[1740434195356,7.08531546,2647.6,2647.5,6.5e-07]
[1740434195556,6.44174001,2647.6,2647.5,6.5e-07]
[1740434197855,7.08520112,2647.6,2647.5,6.5e-07]
[1740434198057,7.08520112,2647.6,2645.9,3.092]
[1740434198259,3.2078,2646.6,2645.9,3.092]
[1740434198453,0.5805,2646.5,2646.0,0.5596]
[1740434198659,1.7505,2646.5,2646.0,0.5596]
[1740434198859,1.7505,2646.5,2645.8,3.2078]
[1740434199055,0.00567065,2646.4,2645.9,0.00567065]
[1740434200153,3.09767065,2646.4,2645.9,0.00567065]
[1740434201468,3.2078,2646.2,2645.9,0.00567065]
[1740434203373,3.09767065,2646.4,2645.9,0.00567065]
[1740434206273,3.2078,2646.2,2645.9,0.00567065]
[1740434206667,3.5866,2646.2,2645.9,0.00567065]
[1740434207270,3.2078,2646.2,2645.9,0.00567065]
[1740434207671,3.093,2646.1,2645.9,0.00567065]
[1740434208174,1.1224,2646.0,2645.9,0.00567065]
[1740434210072,1.1224,2646.0,2645.2,3.2078]
[1740434210272,3.2078,2645.9,2645.2,3.2078]
[1740434211173,3.2078,2645.9,2645.3,0.00567065]
[1740434211364,3.5866,2645.9,2645.3,0.00567065]
[1740434211565,3.2078,2645.6,2645.3,0.00567065]
[1740434211766,1.1002,2645.5,2645.3,0.00567065]
[1740434213061,0.5689,2645.4,2645.3,0.00567065]
[1740434222475,3.2078,2645.9,2645.3,0.00567065]
[1740434222675,0.55,2645.8,2645.3,0.59237065]
[1740434222868,3.2078,2645.6,2645.3,0.00567065]
[1740434224376,0.3788,2645.7,2645.3,0.00567065]
[1740434225570,0.55,2645.8,2645.4,3.2078]
[1740434225884,0.55,2645.8,2645.5,0.5686]
[1740434226372,3.7578,2645.8,2645.3,0.00567065]
[1740434226577,1.0838,2645.7,2645.3,0.00567065]
[1740434227178,3.2078,2645.4,2645.3,0.00567065]
[1740434228771,0.55,2645.8,2645.3,6.30647065]
[1740434228976,0.55,2645.8,2645.6,3.2078]
[1740434229176,3.2078,2646.0,2645.6,3.2078]
[1740434229675,0.5781,2646.2,2645.9,3.2078]
[1740434229870,0.5781,2646.2,2645.8,3.093]
[1740434230380,0.75604,2646.1,2645.9,1.91587]
[1740434230680,0.75604,2646.1,2646.0,0.75606]
[1740434230877,0.75606,2646.0,2645.9,1.1598]
[1740434231375,0.75615,2645.7,2645.6,3.2078]
[1740434231977,0.75615,2645.7,2645.6,3.96398]
[1740434232478,0.75615,2645.7,2645.6,3.2078]
[1740434232678,0.75614,2645.8,2645.7,0.75615]
[1740434232880,0.75612,2645.8,2645.7,0.75615]
[1740434233279,0.75613,2645.8,2645.7,0.75614]
[1740434233582,1.8901,2646.1,2645.7,0.75614]
[1740434233780,0.75612,2645.8,2645.7,0.75614]
[1740434234974,3.7859,2646.2,2645.6,3.2078]
[1740434235281,1.33295,2645.7,2645.6,3.96398]
[1740434235475,1.33295,2645.7,2645.3,0.00567065]
[1740434235476,0.5768,2645.7,2645.3,3.21347065]
[1740434235676,0.75624,2645.4,2645.3,0.00567065]
[1740434236181,4.3326,2645.6,2645.3,0.00567065]
[1740434237377,0.3788,2645.5,2645.3,0.00567065]
[1740434237575,0.3788,2645.5,2644.7,3.2078]
[1740434237880,0.3788,2644.9,2643.8,3.2078]
[1740434238081,3.2078,2644.7,2643.8,3.2078]
[1740434238277,5.09895,2644.7,2643.8,3.2078]
[1740434238478,1.8912,2644.6,2643.9,32.6]
[1740434238674,0.75661,2644.1,2644.0,0.00567065]
[1740434246380,0.75681,2643.4,2643.3,1.1359]
[1740434246983,5.09959,2643.8,2643.3,1.1359]
[1740434247180,0.75679,2643.5,2643.3,1.89272]
[1740434247490,0.75681,2643.4,2643.3,1.89274]
[1740434247690,0.75681,2643.4,2643.3,1.1359]
[1740434247885,0.75681,2643.4,2643.3,1.89274]
[1740434248077,5.09959,2643.8,2643.3,1.1359]
[1740434248283,3.2078,2643.8,2643.3,1.1359]
[1740434248779,3.5866,2643.8,2643.3,0.5777]
[1740434248983,0.5606,2643.7,2643.3,0.5777]
[1740434250585,3.5866,2643.5,2643.1,0.00378042]
[1740434251290,1.89203,2643.4,2643.1,0.00378042]
[1740434251483,0.75687,2643.2,2643.1,0.00378042]
[1740434253684,3.2078,2643.2,2642.6,0.5901]
[1740434253892,0.75701,2642.7,2642.6,0.5901]
[1740434255590,3.02207065,2642.9,2642.5,32.6]
[1740434255793,0.75704,2642.6,2642.5,32.6]
[1740434255988,0.75704,2642.6,2642.4,0.75707]
[1740434256191,6.22987065,2642.9,2642.2,1.1602]
[1740434256391,0.75708,2642.5,2642.3,33.35711]
[1740434256783,0.75708,2642.5,2642.4,0.75709]
[1740434256988,4.33747065,2642.9,2642.3,32.6]
[1740434257288,0.75699,2642.8,2642.3,34.49277]
[1740434257492,0.75699,2642.8,2642.7,0.757]
[1740434257794,4.33747065,2642.9,2642.4,1.89274]
[1740434257989,0.75701,2642.7,2642.6,0.75702]
[1740434258392,1.12967065,2642.9,2642.5,0.00480083]
[1740434258894,0.75703,2642.7,2642.6,0.75703]
[1740434259494,1.12967065,2642.9,2642.5,0.00480083]
[1740434259696,0.75704,2642.6,2642.5,0.76183083]
[1740434262189,0.5681,2642.8,2642.5,0.00480083]
[1740434263591,0.00567065,2642.9,2642.5,0.00480083]
[1740434264597,3.21347065,2642.9,2642.5,0.00480083]
[1740434265892,3.5866,2642.6,2642.5,8.3e-07]
[1740434266196,6.6806,2642.6,2642.5,8.3e-07]
[1740434266391,12.6806,2642.6,2642.5,8.3e-07]
[1740434266588,6.6806,2642.6,2642.5,8.3e-07]
[1740434267193,12.6806,2642.6,2642.5,8.3e-07]
[1740434267388,12.74367016,2642.6,2642.5,8.3e-07]
[1740434267791,12.6806,2642.6,2642.5,8.3e-07]
[1740434268296,9.5866,2642.6,2642.5,8.3e-07]
[1740434268496,12.6806,2642.6,2642.5,8.3e-07]
[1740434269004,6.6806,2642.6,2642.5,8.3e-07]
[1740434270798,3.2078,2642.6,2642.5,8.3e-07]
[1740434272000,0.00567065,2642.9,2642.5,8.3e-07]
[1740434273298,0.00567065,2642.9,2642.5,3.20780083]
[1740434273502,0.00567065,2642.9,2642.6,0.5347]
[1740434273802,3.21347065,2642.9,2642.6,0.5347]
[1740434274197,3.21347065,2642.9,2642.5,8.3e-07]
[1740434274394,0.00567065,2642.9,2642.5,8.3e-07]
[1740434274905,0.55177065,2642.9,2642.5,8.3e-07]
[1740434275094,3.75957065,2642.9,2642.5,8.3e-07]
[1740434276797,3.2078,2642.6,2642.5,8.3e-07]
[1740434278798,6.3018,2642.6,2642.5,8.3e-07]
[1740434279006,6.6806,2642.6,2642.5,8.3e-07]
[1740434282397,6.3018,2642.6,2642.5,8.3e-07]
[1740434282595,3.2078,2642.6,2642.5,8.3e-07]
[1740434283402,3.752,2642.6,2642.5,8.3e-07]
[1740434283806,3.2078,2642.6,2642.5,8.3e-07]
[1740434284201,1.09597065,2642.9,2642.5,8.3e-07]
[1740434285304,3.2078,2642.7,2642.5,8.3e-07]
[1740434286509,0.5563,2642.6,2642.5,8.3e-07]
[1740434288503,3.6503,2642.6,2642.5,8.3e-07]
[1740434290404,0.3788,2642.5,2641.6,0.5478]
[1740434290608,3.2078,2641.9,2641.3,0.5691]
[1740434290814,1.1083,2641.8,2641.3,0.5691]
[1740434291107,1.1083,2641.8,2641.4,0.75738]
[1740434291311,0.75738,2641.5,2641.3,1.32651]
[1740434291520,3.00151,2641.8,2641.3,0.5691]
[1740434291804,0.75737,2641.5,2641.3,1.32649]
[1740434292012,1.1083,2641.8,2641.3,0.5691]
[1740434292215,0.75738,2641.4,2641.3,0.5691]
[1740434295809,0.75744,2641.2,2641.1,0.5384]
[1740434296010,3.96524,2641.2,2641.1,0.5384]
[1740434297108,3.2078,2641.2,2640.9,0.5547]
[1740434299214,0.7575,2641.0,2640.9,0.5547]
[1740434301619,1.89368,2641.1,2640.4,3.2078]
[1740434301825,1.89368,2641.1,2640.5,1.1299]
[1740434301826,0.75763,2640.6,2640.5,1.1299]
[1740434304818,1.6866,2640.8,2640.4,3.2078]
[1740434305020,0.75764,2640.5,2640.4,3.2078]
[1740434305922,0.7577,2640.3,2640.2,1.1085]
[1740434306119,1.89403,2640.6,2640.2,1.1085]
[1740434306120,0.3788,2640.6,2640.2,1.1085]
[1740434306319,3.2078,2640.4,2640.2,1.1085]
[1740434306517,0.3788,2640.6,2640.2,1.1085]
[1740434308521,3.095,2640.5,2640.2,1.1085]
[1740434308722,3.2078,2640.4,2640.2,0.5581]
[1740434308917,0.5848,2640.3,2640.2,0.5581]
[1740434309624,0.5848,2640.3,2639.8,0.5606]
[1740434309924,0.5848,2640.3,2639.9,0.5655]
[1740434310125,1.1197,2640.3,2639.9,0.5655]
[1740434310619,3.2078,2640.1,2639.9,0.5655]
[1740434312126,3.2078,2640.1,2639.8,0.5606]
[1740434312826,6.3028,2640.1,2639.8,0.5606]
[1740434313023,6.3028,2640.1,2639.5,0.5576]
[1740434313422,6.30848171,2640.1,2639.5,0.5576]
[1740434315132,3.21348171,2640.1,2639.5,0.5576]
[1740434316229,0.00568171,2640.1,2639.7,3.2078]
[1740434319520,0.00568171,2640.1,2639.5,0.5576]
[1740434319823,0.00568171,2640.1,2639.5,3.6526]
[1740434322630,3.21348171,2640.1,2639.5,0.5576]
[1740434322830,0.5817,2640.0,2639.5,0.5576]
[1740434323028,1.1483,2640.0,2639.5,0.5576]
[1740434323627,3.2078,2639.8,2639.5,0.5576]
[1740434323821,0.5343,2639.7,2639.5,0.5576]
[1740434324027,0.5343,2639.7,2639.3,0.5676]
[1740434325026,3.2078,2639.5,2639.3,0.5676]
[1740434325729,3.2078,2639.5,2639.0,0.5735]
[1740434325934,3.2078,2639.2,2638.3,3.2078]
[1740434326227,0.75821,2638.5,2638.4,0.5359]
[1740434326623,0.5655,2638.7,2638.0,32.6]
[1740434326919,0.75829,2638.3,2638.1,0.5359]
[1740434327328,2.46661171,2638.7,2638.1,0.5359]
[1740434327526,0.57118171,2638.7,2638.1,0.5359]
[1740434327926,1.89547,2638.6,2638.1,0.5359]
[1740434328132,0.7583,2638.2,2638.1,0.5359]
[1740434328923,0.7583,2638.2,2637.4,0.29644528]
[1740434328924,0.75847,2637.7,2637.5,0.565]
[1740434329130,5.10349,2638.3,2637.5,1.1512]
[1740434329330,0.75847,2637.6,2637.5,1.1512]
[1740434329536,1.89593,2638.0,2637.5,1.1512]
[1740434329827,0.75841,2637.9,2637.5,1.1512]
[1740434330030,0.75842,2637.8,2637.6,0.75846]
[1740434330231,0.75845,2637.7,2637.5,1.90969]
[1740434330437,0.75845,2637.7,2637.6,0.75847]
[1740434330636,1.1054,2638.1,2637.5,1.1512]
[1740434330836,0.75847,2637.6,2637.5,1.1512]
[1740434332936,0.75383887,2637.6,2637.5,1.1512]
[1740434333137,3.84983887,2637.6,2637.5,1.1512]
[1740434333336,3.2078,2638.0,2637.9,0.75839]
[1740434333545,3.10168171,2638.7,2637.7,3.2078]
[1740434333831,3.10168171,2638.7,2638.0,3.2078]
[1740434333832,0.00568171,2638.7,2638.0,3.2078]
[1740434334139,0.75828,2638.3,2638.2,0.75828]
[1740434334327,0.00568171,2638.7,2638.2,0.563]
[1740434334529,1.89549,2638.6,2638.2,0.563]
[1740434334730,1.89594,2638.0,2637.5,3.096]
[1740434334932,0.75841,2637.9,2637.8,0.7584]
[1740434335133,3.2078,2638.3,2637.7,3.2078]
[1740434335334,5.10351,2638.3,2637.8,32.6]
[1740434335733,0.75839,2637.9,2637.8,33.35839]
[1740434336132,0.75838,2638.0,2637.9,0.75837]
[1740434336333,0.75839,2637.9,2637.8,33.3584]
[1740434336638,5.10341,2638.4,2637.6,0.5706]
[1740434336841,0.75844,2637.7,2637.6,3.7784]
[1740434337335,0.75844,2637.7,2637.6,4.53687]
[1740434337532,3.06437,2638.2,2637.6,3.7784]
[1740434337732,0.75844,2637.7,2637.6,4.53685]
[1740434338131,3.06437,2638.2,2637.6,3.7784]
[1740434338334,0.75837,2638.0,2637.9,0.75836]
[1740434338532,0.75837,2638.0,2637.6,5.67454]
[1740434338533,0.75841,2637.9,2637.8,0.7584]
[1740434339134,1.89578,2638.2,2637.6,3.7784]
[1740434339336,0.7584,2637.9,2637.8,0.75838]
[1740434340035,0.75839,2638.0,2637.9,0.75837]
[1740434340434,1.1808,2638.6,2637.9,5.10377]
[1740434340627,4.2768,2638.6,2638.0,0.5531]
[1740434340828,0.75823,2638.5,2638.4,0.75821]
[1740434341037,1.1808,2638.6,2638.2,3.2078]
[1740434341238,0.75827,2638.4,2638.3,0.75825]
[1740434341830,0.00568171,2638.7,2638.6,0.75818]
[1740434342035,0.00568171,2638.7,2638.2,6.3038]
[1740434342433,0.75823,2638.5,2638.4,0.75822]
[1740434344054,0.75827,2638.3,2638.2,7.06209]
[1740434344338,1.89547,2638.6,2638.2,7.06209]
[1740434344339,0.00568171,2638.7,2638.2,6.3038]
[1740434344537,0.76387171,2638.7,2638.6,0.75818]
[1740434345438,3.096,2639.5,2638.8,1.89531]
[1740434345641,0.75804,2639.2,2639.1,0.75802]
[1740434345839,0.75807,2639.0,2638.9,1.1453]
[1740434346346,0.5425,2639.4,2638.9,1.1453]
[1740434346644,0.75799,2639.3,2639.2,0.75798]
[1740434347036,0.00568171,2639.4,2639.3,0.75798]
[1740434349848,0.76364171,2639.4,2639.3,0.75798]
[1740434350050,0.75807,2639.0,2638.9,0.5724]
[1740434350249,4.9453,2639.3,2638.5,6.3038]
[1740434350445,3.2078,2638.8,2638.4,0.544]
[1740434350647,3.2078,2638.9,2638.4,0.544]
[1740434351245,0.75813,2638.8,2638.6,0.75817]
[1740434351451,0.75813,2638.8,2638.7,0.76384171]
[1740434352045,1.7375,2639.3,2638.9,0.75806]
[1740434352046,0.75809,2639.0,2638.9,0.75806]
[1740434352246,0.7581,2638.9,2638.8,0.5428]
[1740434352847,0.7581,2638.9,2638.8,1.30093]
[1740434353551,0.75813,2638.8,2638.7,0.00568171]
[1740434353940,0.75813,2638.8,2638.7,0.76384171]
[1740434355244,0.75813,2638.8,2638.7,0.00568171]
[1740434357350,6.6816,2639.1,2638.7,0.00568171]
[1740434359446,6.6816,2639.1,2637.3,3.2078]
[1740434359447,3.5866,2638.8,2637.3,3.2078]
[1740434359650,0.3788,2637.7,2637.1,0.5767]
[1740434359856,3.5866,2637.6,2636.9,6.8537]
[1740434360049,3.2078,2637.6,2636.9,39.4537]
[1740434360353,0.75858,2637.3,2637.2,0.75858]
[1740434360655,3.2078,2637.6,2636.9,39.4537]
[1740434360656,0.00568171,2637.5,2636.9,39.4537]
[1740434360850,0.00568171,2637.5,2637.4,0.75853]
[1740434361649,0.75853,2637.4,2637.3,0.75853]
[1740434361857,0.75856,2637.4,2637.3,0.75855]
[1740434362156,0.75856,2637.4,2637.2,3.2078]
[1740434362157,0.76419171,2637.5,2637.4,0.75853]
[1740434362356,0.00568171,2637.5,2637.2,6.3028]
[1740434362556,0.75856,2637.4,2637.3,0.75855]
[1740434362854,0.00568171,2637.5,2637.4,0.75853]
[1740434363658,0.76418171,2637.5,2637.4,0.75853]
[1740434364257,0.00568171,2637.5,2637.4,0.75853]
[1740434364462,0.76418171,2637.5,2637.4,0.75853]
[1740434364958,0.75855,2637.4,2637.3,0.75854]
[1740434366059,0.00568171,2637.5,2637.4,0.75853]
[1740434367263,0.76418171,2637.5,2637.4,0.75853]
[1740434367654,0.00568171,2637.5,2637.2,6.3028]
[1740434367854,0.75856,2637.3,2637.2,3.2078]
[1740434368158,0.00568171,2637.5,2637.2,6.3038]
[1740434370559,0.00568171,2637.5,2637.2,12.3038]
[1740434370762,0.00568171,2637.5,2637.2,6.3038]
[1740434371760,0.00568171,2637.5,2637.2,3.2078]
[1740434371962,0.00568171,2637.5,2637.3,3.096]
[1740434372162,0.00568171,2637.5,2637.4,0.5934]
[1740434372360,0.00568171,2637.5,2637.4,1.1638]
[1740434372662,0.00568171,2637.5,2637.4,4.2598]
[1740434375966,0.00568171,2637.5,2637.4,1.1638]
[1740434376462,0.00568171,2637.5,2637.4,0.5704]
[1740434384058,3.2078,2638.4,2637.4,9.5524]
[1740434384266,3.2078,2638.4,2638.0,3.2078]
[1740434385169,1.7257,2638.5,2638.1,1.1305]
[1740434385462,1.73138171,2638.5,2638.1,1.1305]
[1740434385673,1.73138171,2638.5,2638.1,33.7305]
[1740434386176,1.73138171,2638.5,2638.1,1.1305]
[1740434387167,1.73138171,2638.5,2638.2,32.6]
[1740434387971,1.73138171,2638.5,2638.1,1.1305]
[1740434388373,1.73138171,2638.5,2638.2,32.6]
[1740434388877,1.73138171,2638.5,2638.1,1.1305]
[1740434390078,1.73138171,2638.5,2638.2,3.095]
[1740434393171,1.73138171,2638.5,2638.1,0.5751]
[1740434393376,1.73138171,2638.5,2638.0,6.3028]
[1740434393874,3.2078,2638.1,2637.9,1.71e-06]
[1740434394072,1.1332,2638.0,2637.9,1.71e-06]
[1740434402280,3.2078,2638.4,2637.9,3.09500171]
[1740434402582,0.58278171,2638.5,2638.0,3.2078]
[1740434402783,0.00568171,2638.5,2638.0,3.7926]
[1740434402978,0.00568171,2638.5,2638.4,3.2078]
[1740434403781,0.00568171,2638.5,2638.4,9.7585]
[1740434404083,3.7531,2639.6,2638.4,9.7585]
[1740434404278,5.64788,2639.6,2638.9,3.2078]
[1740434404578,0.75807,2639.0,2638.9,3.095]
[1740434405481,1.84697,2639.0,2638.9,3.095]